Cogmind - Beta 12 @@@ ROGUE MODE // 2024.02.10 @ 14:18:23 Player: Dosh Result: Destroyed by Enhanced Grunt with Neutron Cannon Performance ------------- Evolutions (3) 1500 Regions Visited (13) 2600 Robots Destroyed (237) 1185 Value Destroyed (7317) 7317 Prototype IDs (43) 860 Alien Tech Used (0) 0 Bonus (1081) 1081 TOTAL SCORE: 14543 Bonus ------- High Alert Combat Kills 375 Follower Combat Kills 136 Entered Garrisons 200 Aligned with FarCom 300 Met Data Miner 300 Friendly Fire -230 Cogmind --------- Core Integrity 0/700 Matter 64/300 Energy 100/100 System Corruption 0% Temperature Cool (0) Movement Treading (240) Ox1 Location -7/Data Miner Parts ------- > --- POWER (1) -------- (None) > --- PROPULSION (4) --- Medium Treads > --- UTILITY (6) ------ High-capacity Storage Unit Core Analyzer Makeshift System Shield > --- WEAPON (2) ------- (None) > --- INVENTORY (20) --- Improved Deuterium Engine Armored Huge Wheel Improved Coolant Injector Machine Analyzer Encrypted Comm Array Improved Salvage Targeting Computer Improved Transmission Jammer Remote Force Field Hacking Suite Hacking Suite Authchip [Processor] System Restoration Module Long-range Tractor Beam Improved EM Pulse Cannon Heavy Rocket Launcher Field Lobotomy Kit (5) Power Maul Peak State ------------ > --- POWER ------------ Neutrino Core > --- PROPULSION ------- Armored Huge Wheel Armored Huge Wheel > --- UTILITY ---------- High-capacity Storage Unit Core Analyzer Improved Medium Armor Plating Improved Medium Armor Plating Reactive Plating Makeshift System Shield > --- WEAPON ----------- Enhanced Gauss Cannon Enhanced Gauss Cannon > --- INVENTORY -------- Improved Deuterium Engine Improved Deuterium Engine Medium Treads Medium Treads Medium Treads Medium Treads Improved Coolant Injector Machine Analyzer Encrypted Comm Array Improved Transmission Jammer Remote Force Field Hacking Suite Hacking Suite Authchip [Processor] System Restoration Module Long-range Tractor Beam Improved EM Pulse Cannon Heavy Rocket Launcher Field Lobotomy Kit Power Maul [Rating: 62] Favorites ----------- Power Cooled Ion Engine Engine Cooled Ion Engine Power Core Light Nuclear Core Propulsion Light Treads Treads Light Treads Leg Carbon-fiber Leg Wheel Armored Huge Wheel Flight Unit Xenon Bombardment Thruster Utility High-capacity Storage Unit Device Seismic Detector Storage High-capacity Storage Unit Processor Advanced Targeting Computer Hackware Hacking Suite Protection Medium Armor Plating Weapon Improved Light Cannon Energy Cannon Light EM Pulse Cannon Ballistic Gun Assault Rifle Ballistic Cannon Improved Light Cannon Launcher Rocket Launcher Impact Weapon Heavy Flail Slashing Weapon Axe Build | -11 -10 -10 -9 -9 -9 -8 -8 -8 -8 -7 -7 -7 -7 ------- Run | Jun Mat Min Mat Min Exi Min Mat Gar Mat Fac Low Low Dat Slots Evolved 6 | . . . 2 . . . 2 . . 2 . . . Power . | . . . . . . . . . . . . . . Propulsion 2 | . . . . . . . 2 . . . . . . Utility 4 | . . . 2 . . . . . . 2 . . . Weapon . | . . . . . . . . . . . . . . Parts Attached 169 | 6 7 1 28 6 . 4 19 19 27 35 6 9 2 Power 11 | 1 1 . 1 . . . 1 1 2 2 1 1 . Engine 9 | 1 . . 1 . . . 1 1 2 2 . 1 . Core 2 | . 1 . . . . . . . . . 1 . . Reactor . | . . . . . . . . . . . . . . Propulsion 54 | 2 3 . 9 1 . . 10 6 15 4 . 4 . Treads 32 | 2 . . 9 1 . . 10 6 . . . 4 . Leg 7 | . 2 . . . . . . . 5 . . . . Wheel 8 | . 1 . . . . . . . 3 4 . . . Hover . | . . . . . . . . . . . . . . Flight 7 | . . . . . . . . . 7 . . . . Utility 44 | 1 2 1 8 2 . 1 4 3 7 14 1 . . Device 12 | . 1 . 2 . . . . 1 3 5 . . . Storage 6 | 1 1 . 1 . . . 1 . 2 . . . . Processor 4 | . . . . 1 . . 1 . 1 1 . . . Hackware 4 | . . . . . . . . 1 1 1 1 . . Protection 18 | . . 1 5 1 . 1 2 1 . 7 . . . Artifact . | . . . . . . . . . . . . . . Weapon 60 | 2 1 . 10 3 . 3 4 9 3 15 4 4 2 Energy Gun . | . . . . . . . . . . . . . . Energy Cannon 3 | . . . 1 . . . . . . 2 . . . Ballistic Gun 9 | 2 . . 2 . . 2 2 . . 1 . . . Ballistic Cannon 33 | . 1 . 6 1 . . 2 6 2 10 2 2 1 Launcher 11 | . . . 1 2 . 1 . 3 . . 2 2 . Special Weapon . | . . . . . . . . . . . . . . Impact Weapon 2 | . . . . . . . . . 1 . . . 1 Slashing Weapon 2 | . . . . . . . . . . 2 . . . Piercing Weapon . | . . . . . . . . . . . . . . Special Melee Weapon . | . . . . . . . . . . . . . . Unidentified Prototypes 3 | . . . 1 . . . . . 1 1 . . . Parts Lost 38 | . . . 6 4 . 1 . 6 9 1 1 4 6 Power 5 | . . . 1 . . . . 1 1 1 . . 1 Propulsion 14 | . . . 1 1 . . . 3 5 . . 1 3 Utility 12 | . . . 3 3 . . . 1 2 . . 3 . Weapon 7 | . . . 1 . . 1 . 1 1 . 1 . 2 Highest Loss Streak 6 | . . . 3 3 . 1 . 2 5 1 1 3 6 To Critical Strikes . | . . . . . . . . . . . . . . Average Slot Usage (%) 91 | . 99 100 96 94 88 99 97 91 81 86 84 65 70 Engine 7 | . 10 . 5 11 11 11 9 8 7 6 4 4 6 Core 2 | . 3 14 5 . . . . . . . 2 2 . Treads 16 | . 21 . 20 21 22 22 34 34 7 . . 1 27 Leg 3 | . 5 28 1 . . . . . 5 8 . . . Wheel 2 | . 1 . . . . . . . 1 10 15 10 . Flight 1 | . . . . . . . . . 15 . . . . Device 4 | . 9 5 9 3 . . . 1 9 3 . . . Storage 10 | . 17 14 11 11 11 11 9 9 9 7 7 7 7 Processor 7 | . . . . 6 11 11 12 14 5 13 7 7 7 Hackware 2 | . . . . . . . . . 5 10 7 7 7 Protection 11 | . . 8 21 17 11 21 13 5 2 7 23 7 . Ballistic Gun 6 | . 21 14 4 . . 17 9 6 . . . . . Ballistic Cannon 11 | . 6 14 14 15 22 2 8 9 7 11 14 14 11 Naked Turns . | . . . . . . . . . . . . . . Heaviest Build 96 | 14 34 37 71 67 64 65 67 83 83 92 96 96 68 Greatest Support 112 | 40 40 26 46 43 40 40 85 85 80 60 56 112 112 Greatest Overweight (x) 19 | . 3 1 1 1 1 1 1 1 19 1 1 2 1 Average Overweight (x) . | . . 1 . 1 1 1 . . . . 1 1 . Largest Inventory Capacity 20 | 8 15 15 20 20 20 20 20 20 20 20 20 20 20 Average Capacity 18 | 6 14 15 18 20 20 20 20 20 15 20 20 20 20 Most Carried 20 | 2 15 15 20 17 15 16 20 20 20 20 20 20 18 Average Carried 15 | 1 6 14 15 14 14 15 18 19 13 18 19 19 18 Final Capacity 20 | 8 15 15 20 20 20 20 20 20 20 20 20 20 20 Final Carried 20 | 2 15 14 15 14 15 15 20 20 11 20 20 18 18 Class Distribution -------------------- 80% | Mutant 8% | Hacker-Mutant 7% | Scavenger-Mutant 3% | Sprinter Dominant Class ---------------- Mutant | -10/Materials Mutant | -10/Mines Mutant | -9/Materials Mutant | -9/Mines Mutant | -9/Exiles Mutant | -8/Mines Mutant | -8/Materials Scavenger-Mutant | -8/Garrison Sprinter | -8/Materials Mutant | -7/Factory Mutant | -7/Lower Caves Mutant | -7/Lower Caves Mutant | -7/Data Miner Resources | -11 -10 -10 -9 -9 -9 -8 -8 -8 -8 -7 -7 -7 -7 ----------- Run | Jun Mat Min Mat Min Exi Min Mat Gar Mat Fac Low Low Dat Matter Collected 6033 | 170 575 44 907 286 . 159 827 537 943 1147 243 186 9 Remotely 152 | . . . . . . . . . 152 . . . . Salvage Created 6815 | . 624 61 1628 277 . 231 1203 570 893 928 158 242 . Parts 425 | . 54 2 110 14 . 12 80 40 41 58 6 8 . Haulers Intercepted 13 | . 2 . 6 . . . 1 . 4 . . . . Recyclers Shooed 7 | . . . 3 . . 1 1 . 2 . . . . Parts Field Recycled . | . . . . . . . . . . . . . . Retrieved Matter . | . . . . . . . . . . . . . . Parts Self-Destructed 11 | . . . . . . . . . . . 11 . . Prevented . | . . . . . . . . . . . . . . Kills | -11 -10 -10 -9 -9 -9 -8 -8 -8 -8 -7 -7 -7 -7 ------- Run | Jun Mat Min Mat Min Exi Min Mat Gar Mat Fac Low Low Dat Combat Hostiles Destroyed 177 | . 13 2 33 20 . 11 20 26 15 18 7 12 . Melee 5 | . . . . . . . . . 4 1 . . . Guns 25 | . 10 2 1 . . . 8 4 . . . . . Cannons 75 | . 3 . 22 2 . 1 12 5 10 16 1 3 . AOE 71 | . . . 10 18 . 10 . 17 . 1 6 9 . Classes Destroyed 18 | . 7 . 6 2 . 1 . 1 . . . 1 . Worker 9 | . 1 . 3 . . . 2 . . 3 . . . Builder 12 | . . . 4 1 . . . . 5 2 . . . Tunneler 2 | . 1 . . . . . . . . 1 . . . Hauler 13 | . 2 . 6 . . . 1 . 4 . . . . Recycler 10 | . . . 2 . . . 2 . 3 3 . . . Mechanic 1 | . . . 1 . . . . . . . . . . Operator 6 | . 3 . 3 . . . . . . . . . . Watcher 13 | . 3 . 3 . . . 4 . 2 1 . . . Swarmer 36 | . 6 . 6 3 . 3 . 8 2 4 2 2 . Grunt 79 | . 7 2 14 8 . 5 9 12 10 4 4 4 . Brawler 8 | . . . 3 . . 1 2 . . . . 2 . Duelist 3 | . . . 1 . . . . . 1 . . 1 . Sentry 31 | . . . 9 . . . 8 3 2 5 1 3 . Demolisher 1 | . . . . 1 . . . . . . . . . Hunter 4 | . . . . . . 2 1 . . 1 . . . Programmer 7 | . . . . . . . . 3 . 4 . . . Thief 1 | . . . . . . . . . . . . 1 . Assembled 8 | . . . . 8 . . . . . . . . . Thug 1 | . . . . 1 . . . . . . . . . Best Kill Streak 16 | . 3 2 16 7 . 3 4 10 6 5 4 8 . Combat Bots Only 10 | . 3 2 9 7 . 3 4 10 3 4 4 8 . Max Kills in Single Turn 4 | . 1 1 4 3 . 2 2 4 2 3 2 2 . Gunslinging . | . . . . . . . . . . . . . . Exploded 4 | . . . 2 3 . 2 . 4 . 1 2 2 . Melee 1 | . . . . . . . . . 1 1 . . . Uniques/NPCs Destroyed . | . . . . . . . . . . . . . . Combat | -11 -10 -10 -9 -9 -9 -8 -8 -8 -8 -7 -7 -7 -7 -------- Run | Jun Mat Min Mat Min Exi Min Mat Gar Mat Fac Low Low Dat Damage Taken 10164 | . 311 146 1318 607 . 294 858 1572 1177 878 524 852 1627 Core 1213 | . 35 10 92 . . 34 80 127 123 84 16 82 530 Absorbed by Shields 175 | . . . . . . . . . . 175 . . . Regen/Repaired (Parts) 856 | . . . 211 . . . 548 . 13 84 . . . Core Remaining (%) 72 | 100 . 82 . . . 68 . . 40 . . . . Volleys Fired 504 | . 68 7 98 25 . 17 75 60 45 67 16 20 6 Largest 2 | . 2 2 2 2 . 2 2 2 2 2 2 2 2 Hottest 117 | . 55 55 95 78 . 69 72 114 114 117 114 114 114 Shots Fired 905 | . 136 14 187 30 . 30 137 95 83 126 23 32 12 Gun 268 | . 121 7 35 . . . 69 36 . . . . . Cannon 556 | . 15 7 142 8 . 14 68 44 83 126 16 21 12 Launcher 81 | . . . 10 22 . 16 . 15 . . 7 11 . Special . | . . . . . . . . . . . . . . Kinetic 771 | . 136 14 142 8 . 14 137 80 83 108 16 21 12 Thermal . | . . . . . . . . . . . . . . Explosive 81 | . . . 10 22 . 16 . 15 . . 7 11 . Electromagnetic 53 | . . . 35 . . . . . . 18 . . . Robot Hit Streak 17 | . 8 5 14 3 . 8 16 17 6 6 6 7 3 Robot Miss Streak 7 | . 7 2 3 2 . 1 3 2 4 4 1 2 4 Penetration Max 1 | . . . . . . . . 1 1 1 . . . Secondary Targets . | . . . . . . . . . . . . . . Shots Hit Robots 532 | . 68 9 127 14 . 12 92 57 59 62 12 13 7 Core Hits 383 | . 32 4 75 42 . 27 48 53 24 34 15 26 3 Critical Kills 6 | . . . . . . . . 2 4 . . . . Critical Parts Destroyed 14 | . . . . . . . 1 5 7 . . . 1 Critical Strikes 52 | . 1 1 7 . . . 2 7 18 10 2 1 3 Destroy 17 | . . . 1 . . . 1 7 8 . . . . Blast 29 | . 1 1 6 . . . 1 . 6 9 2 1 2 Corrupt 1 | . . . . . . . . . . 1 . . . Smash 5 | . . . . . . . . . 4 . . . 1 Melee Attacks 44 | . . . . . . . . . 36 2 . . 6 Impact 42 | . . . . . . . . . 36 . . . 6 Slashing 2 | . . . . . . . . . . 2 . . . Piercing . | . . . . . . . . . . . . . . Sneak Attacks 6 | . . . . . . . . . 5 . . . 1 Combat Hostiles 1 | . . . . . . . . . 1 . . . . Follow-up Attacks . | . . . . . . . . . . . . . . Damage Inflicted 19311 | . 921 148 3742 1425 . 951 2032 2463 2672 2147 759 1665 386 Guns 2718 | . 774 79 302 . . . 906 657 . . . . . Cannons 8688 | . 133 50 2171 105 . 166 1080 465 1524 2047 344 336 267 Explosions 6353 | . . . 1248 1252 . 771 . 1332 . 6 415 1329 . Melee 1267 | . . . . . . . . . 1123 66 . . 78 Ramming 285 | . 14 19 21 68 . 14 46 9 25 28 . . 41 Kinetic 10526 | . 907 129 1849 105 . 166 1986 1122 1524 1791 344 336 267 Thermal 338 | . . . 338 . . . . . . . . . . Explosive 6009 | . . . 910 1252 . 771 . 1332 . . 415 1329 . Electromagnetic 886 | . . . 624 . . . . . . 262 . . . Impact 1201 | . . . . . . . . . 1123 . . . 78 Slashing 66 | . . . . . . . . . . 66 . . . Piercing . | . . . . . . . . . . . . . . Highest Corruption 5 | . . . . . . . . 4 5 3 . . . Average Corruption 3 | . . . . . . . . 3 4 2 . . . Corruption Purged 5 | . . . . . . . . . . 5 . . . Corruption Blocked . | . . . . . . . . . . . . . . Effects 48 | . . . . . . . . 6 33 9 . . . Message Errors 18 | . . . . . . . . 4 11 3 . . . Matter Fused 11 | . . . . . . . . . 9 2 . . . Heat Flow Errors 6 | . . . . . . . . . 5 1 . . . Energy Discharges 2 | . . . . . . . . . 2 . . . . Parts Rejected 1 | . . . . . . . . . 1 . . . . Parts Fused 1 | . . . . . . . . . 1 . . . . Data Loss (minor) 6 | . . . . . . . . 2 2 2 . . . Data Loss (major) 2 | . . . . . . . . . 1 1 . . . Alerts 1 | . . . . . . . . . 1 . . . . Overload Shots . | . . . . . . . . . . . . . . Overflow Damage 915 | . . . 91 56 . 27 7 43 508 84 17 4 78 Projectiles 203 | . . . 21 . . 5 7 33 52 84 1 . . Explosions 178 | . . . 70 56 . 22 . 10 . . 16 4 . Melee 534 | . . . . . . . . . 456 . . . 78 Knockbacks 75 | . 1 . 9 1 . 1 8 6 16 18 6 3 6 Impact 6 | . . . 1 1 . . . . 1 2 . . 1 Kinetic 66 | . 1 . 8 . . 1 8 6 15 15 5 2 5 Secondary 3 | . . . . . . . . . . 1 1 1 . Self-Inflicted Damage 502 | . . . 125 46 . 52 . 73 11 43 . 152 . Shots 18 | . . . 6 1 . 2 . 3 . 2 . 4 . Rammed 39 | . 1 . 6 7 . 3 3 2 4 2 . . 11 Targets Rammed 48 | . 3 4 6 8 . 3 4 2 4 3 . . 11 Kicked 7 | . 2 4 . . . . . . . 1 . . . Crushed 2 | . . . . 1 . . 1 . . . . . . Highest Temperature 446 | . 7 45 130 42 . 52 180 255 446 283 318 301 165 Average Temperature 76 | . 3 21 39 16 . 18 43 91 126 76 126 106 80 Received Heat Transfer 2961 | . 57 81 486 79 . 54 342 711 621 143 207 180 . Effects 4 | . . . . . . . . 1 2 . . 1 . Energy Bleed 2 | . . . . . . . . 1 . . . 1 . Short Circuit 1 | . . . . . . . . . 1 . . . . Damage (minor) 1 | . . . . . . . . . 1 . . . . Siege Activations . | . . . . . . . . . . . . . . Robots Corrupted 1 | . . . 1 . . . . . . . . . . Combat Hostiles . | . . . . . . . . . . . . . . Parts Fried 8 | . . . . . . . . . 7 1 . . . Impact Corruptions 15 | . . . . . . . . . 13 1 . . 1 Robots Melted . | . . . . . . . . . . . . . . Combat Hostiles . | . . . . . . . . . . . . . . Parts Melted 1 | . . . 1 . . . . . . . . . . Heat Transferred 450 | . . . 450 . . . . . . . . . . Parts Sabotaged . | . . . . . . . . . . . . . . Parts Stolen . | . . . . . . . . . . . . . . Parts Stripped . | . . . . . . . . . . . . . . Power Chain Reactions 4 | . . . 4 . . . . . . . . . . Missiles Intercepted . | . . . . . . . . . . . . . . Alert | -11 -10 -10 -9 -9 -9 -8 -8 -8 -8 -7 -7 -7 -7 ------- Run | Jun Mat Min Mat Min Exi Min Mat Gar Mat Fac Low Low Dat Peak Influence 792 | . 295 52 509 271 . 362 178 792 775 308 . . . Initial 386 | . . 2 . 180 . . . 85 386 129 . . . Average 206 | . 73 7 325 130 . 105 81 586 488 173 . . . Maximum Alert Level 3 | . 1 . 2 1 . 1 . 3 3 1 . . . Low Security (%) 59 | 100 94 100 13 65 . 85 100 14 . 64 . . . Level 1 24 | . 5 . 52 34 . 14 . 8 35 35 . . . Level 2 12 | . . . 34 . . . . 21 64 . . . . Level 3 3 | . . . . . . . . 54 . . . . . Level 4 . | . . . . . . . . . . . . . . Level 5 . | . . . . . . . . . . . . . . High Security . | . . . . . . . . . . . . . . Max Security . | . . . . . . . . . . . . . . Squads Dispatched 32 | . 6 . 5 . . 2 1 . 4 13 . 1 . Investigation 14 | . 4 . 2 . . 1 1 . 2 4 . . . Extermination 4 | . . . . . . . . . . 4 . . . Reinforcement 7 | . 2 . 2 . . 1 . . . 2 . . . Assault 2 | . . . 1 . . . . . . . . 1 . Garrison 5 | . . . . . . . . . 2 3 . . . Intercept . | . . . . . . . . . . . . . . Searches Triggered . | . . . . . . . . . . . . . . Construction Impeded 1 | . . . . . . 1 . . . . . . . Haulers Reinforced . | . . . . . . . . . . . . . . Active Scanning Responses . | . . . . . . . . . . . . . . Cargo Convoy Interrupts . | . . . . . . . . . . . . . . Stealth | -11 -10 -10 -9 -9 -9 -8 -8 -8 -8 -7 -7 -7 -7 --------- Run | Jun Mat Min Mat Min Exi Min Mat Gar Mat Fac Low Low Dat Distress Signals 13 | . 1 . 2 . . . 2 . 5 3 . . . Communications Jammed 19 | . . . . . . . . . 19 . . . . Distress Signals 19 | . . . . . . . . . 19 . . . . Times Spotted 248 | . 25 2 53 22 . 11 37 20 27 28 11 10 2 Peak Tracking Total 12 | . 3 2 7 12 . 3 4 9 5 4 5 8 2 Tactical Retreats 17 | . 1 . 1 1 . . 3 . 6 2 1 2 . Traps | -11 -10 -10 -9 -9 -9 -8 -8 -8 -8 -7 -7 -7 -7 ------- Run | Jun Mat Min Mat Min Exi Min Mat Gar Mat Fac Low Low Dat Traps Triggered 11 | . 2 . 1 . . . 1 3 1 3 . . . Indirectly . | . . . . . . . . . . . . . . Trap Hack Attempts . | . . . . . . . . . . . . . . Triggered . | . . . . . . . . . . . . . . Disarmed . | . . . . . . . . . . . . . . Reprogrammed 6 | . . . . . . . 6 . . . . . . Reused . | . . . . . . . . . . . . . . Traps Extracted . | . . . . . . . . . . . . . . Installed . | . . . . . . . . . . . . . . Triggered . | . . . . . . . . . . . . . . Machines | -11 -10 -10 -9 -9 -9 -8 -8 -8 -8 -7 -7 -7 -7 ---------- Run | Jun Mat Min Mat Min Exi Min Mat Gar Mat Fac Low Low Dat Machines Disabled 30 | . . . 2 4 . 2 . 2 9 7 1 2 1 Max in Single Turn 4 | . . . 1 4 . 1 . 1 1 4 1 1 1 Garrison Access 2 | . . . . . . . . . . 2 . . . Machines Repaired . | . . . . . . . . . . . . . . Machines Sabotaged . | . . . . . . . . . . . . . . Overloaded Fab Kills . | . . . . . . . . . . . . . . Hacking | -11 -10 -10 -9 -9 -9 -8 -8 -8 -8 -7 -7 -7 -7 --------- Run | Jun Mat Min Mat Min Exi Min Mat Gar Mat Fac Low Low Dat Machines Accessed 73 | . 9 1 10 . 2 1 13 2 7 24 . . 4 Terminals 37 | . 6 . 5 . . 1 9 2 4 10 . . . Fabricators 5 | . . . . . . . . . . 5 . . . Repair Stations 8 | . 1 . 2 . . . 2 . 1 2 . . . Recycling Units 9 | . 2 . 2 . . . . . 1 4 . . . Scanalyzers 2 | . . . 1 . . . 1 . . . . . . Garrison Access 5 | . . . . . . . 1 . 1 3 . . . Total Hacks 201 | . 19 1 28 . 2 2 37 4 22 57 . . 29 Successful 135 | . 8 1 18 . 2 . 27 3 10 37 . . 29 Failed 64 | . 11 . 9 . . 2 9 1 12 20 . . . Catastrophic 6 | . 1 . . . . 1 2 . 1 1 . . . Database Lockouts 2 | . . . 1 . . . 1 . . . . . . Manual 80 | . 17 . 12 . 1 3 22 1 3 21 . . . Terminals 105 | . 15 . 17 . . 2 24 4 13 30 . . . Fabricators 10 | . . . . . . . . . . 10 . . . Repair Stations 24 | . 2 . 5 . . . 10 . 2 5 . . . Recycling Units 16 | . 2 . 2 . . . . . 4 8 . . . Scanalyzers 6 | . . . 4 . . . 2 . . . . . . Garrison Access 8 | . . . . . . . 1 . 3 4 . . . Terminal Hacks 73 | . 5 1 6 . 2 . 7 2 4 17 . . 29 Record 12 | . . . . . 1 . . . . . . . 11 Part Schematic 11 | . . . . . . . . . . 1 . . 10 Robot Schematic 5 | . . . . . . . . . . . . . 5 Robot Analysis 10 | . 5 . 1 . . . 2 . . 2 . . . Prototype ID Bank 8 | . . . 1 . . . 1 . . 3 . . 3 Open Door 1 | . . 1 . . . . . . . . . . . Branch Access Points 1 | . . . . . . . . . . 1 . . . Emergency Access Points 4 | . . . 1 . . . . 1 . 2 . . . Terminal Index 1 | . . . . . . . . . . 1 . . . Repair Station Index 1 | . . . . . . . . . . 1 . . . Alert Level 2 | . . . . . . . . . 1 1 . . . Unreport Threat 7 | . . . 1 . . . 2 . 3 1 . . . Locate Traps 2 | . . . . . . . . . . 2 . . . Reprogram Traps 2 | . . . 1 . . . 1 . . . . . . Patrol Status 1 | . . . . . . . . . . 1 . . . Hauler Manifests 3 | . . . 1 . . . 1 . . 1 . . . Patrol Navigation 1 | . . . . . . . . 1 . . . . . EX-Prototype ID Bank 1 | . . . . . 1 . . . . . . . . Fabricator Hacks 3 | . . . . . . . . . . 3 . . . Network Status 2 | . . . . . . . . . . 2 . . . Build 1 | . . . . . . . . . . 1 . . . Repair Station Hacks 21 | . 1 . 4 . . . 10 . 2 4 . . . Scan Component 11 | . 1 . 2 . . . 5 . 1 2 . . . Repair 10 | . . . 2 . . . 5 . 1 2 . . . Recycling Unit Hacks 4 | . . . . . . . . . 2 2 . . . Process 1 | . . . . . . . . . 1 . . . . Retrieve Matter 1 | . . . . . . . . . 1 . . . . Retrieve Components 2 | . . . . . . . . . . 2 . . . Scanalyzer 6 | . . . 4 . . . 2 . . . . . . Insert Component 3 | . . . 2 . . . 1 . . . . . . Analyze 3 | . . . 2 . . . 1 . . . . . . Garrison Access Hacks 3 | . . . . . . . 1 . . 2 . . . Unlock Access 1 | . . . . . . . 1 . . . . . . Seal Access 2 | . . . . . . . . . . 2 . . . Unauthorized Hacks 25 | . 2 . 4 . . . 7 1 2 9 . . . Terminals 15 | . . . 2 . . . 7 1 2 3 . . . Assimilate 4 | . . . . . . . 4 . . . . . . Botnet 8 | . . . 2 . . . 2 . 2 2 . . . Operators 2 | . . . . . . . 1 . . 1 . . . Override 1 | . . . . . . . . 1 . . . . . Fabricators 6 | . . . . . . . . . . 6 . . . Prioritize 1 | . . . . . . . . . . 1 . . . Liberate 4 | . . . . . . . . . . 4 . . . Recompile 1 | . . . . . . . . . . 1 . . . Repair Stations . | . . . . . . . . . . . . . . Recycling Units 4 | . 2 . 2 . . . . . . . . . . Tunnel 4 | . 2 . 2 . . . . . . . . . . Scanalyzers . | . . . . . . . . . . . . . . Garrison Access . | . . . . . . . . . . . . . . Data Cores Recovered 2 | . 1 . 1 . . . . . . . . . . Used . | . . . . . . . . . . . . . . Hacking Detections 47 | . 7 . 8 . . 1 11 2 6 12 . . . Full Trace Events 9 | . . . 1 . . 1 1 . 4 2 . . . Feedback Events 1 | . . . . . . . . . 1 . . . . Corruption 1 | . . . . . . . . . 1 . . . . Feedback Blocked . | . . . . . . . . . . . . . . Robot Schematics Acquired 5 | . . . . . . . . . . . . . 5 Robots Built . | . . . . . . . . . . . . . . Authchips . | . . . . . . . . . . . . . . Time . | . . . . . . . . . . . . . . Total Robot Build Rating . | . . . . . . . . . . . . . . Part Schematics Acquired 12 | . . . 1 . . . . . . 1 . . 10 Parts Built 2 | . . . . . . . . . . 2 . . . Authchips . | . . . . . . . . . . . . . . Time 106 | . . . . . . . . . . 106 . . . Total Part Build Rating 12 | . . . . . . . . . . 12 . . . Parts Repaired 10 | . . . 2 . . . 5 . 1 2 . . . Time 322 | . . . 45 . . . 172 . 56 49 . . . Parts Recycled . | . . . . . . . . . . . . . . Recycled Matter 27 | . . . . . . . . . 27 . . . . Retrieved Matter 27 | . . . . . . . . . 27 . . . . Retrieved Components 12 | . . . . . . . . . . 12 . . . Parts Scanalyzed 3 | . . . 2 . . . 1 . . . . . . Part Schematics Acquired 1 | . . . 1 . . . . . . . . . . Parts Damaged . | . . . . . . . . . . . . . . Bothacking | -11 -10 -10 -9 -9 -9 -8 -8 -8 -8 -7 -7 -7 -7 ------------ Run | Jun Mat Min Mat Min Exi Min Mat Gar Mat Fac Low Low Dat Used RIF Installer . | . . . . . . . . . . . . . . Robots Hacked . | . . . . . . . . . . . . . . Non-combat . | . . . . . . . . . . . . . . Combat . | . . . . . . . . . . . . . . Robot Hacks Applied . | . . . . . . . . . . . . . . Relay Couplers Released . | . . . . . . . . . . . . . . Fabnet Peak Effective % . | . . . . . . . . . . . . . . Robots Rewired 1 | . . . . . . . . . . . 1 . . Allies Hacked . | . . . . . . . . . . . . . . Hacks Repelled . | . . . . . . . . . . . . . . Allies | -11 -10 -10 -9 -9 -9 -8 -8 -8 -8 -7 -7 -7 -7 -------- Run | Jun Mat Min Mat Min Exi Min Mat Gar Mat Fac Low Low Dat Total Allies 16 | . . 3 . . . . 4 . . 8 1 . . Largest Group 5 | . . 3 3 . . . 3 3 . 5 1 1 . Highest-Rated Group 135 | . . 40 40 . . . 30 30 . 135 32 32 . Highest-Rated Ally 32 | . . 16 16 . . . 10 10 . 31 32 32 . Total Orders 12 | . . . . . . . 6 6 . . . . . STAY 5 | . . . . . . . 3 2 . . . . . FOLLOW 7 | . . . . . . . 3 4 . . . . . Ally Attacks 51 | . . . 20 . . . . . . 24 4 3 . Total Damage 683 | . . . 194 . . . . . . 283 141 65 . Kills 8 | . . . 1 . . . . . . 4 2 1 . Allies Corrupted . | . . . . . . . . . . . . . . Allies Melted . | . . . . . . . . . . . . . . Intel | -11 -10 -10 -9 -9 -9 -8 -8 -8 -8 -7 -7 -7 -7 ------- Run | Jun Mat Min Mat Min Exi Min Mat Gar Mat Fac Low Low Dat Robot Analysis Total 10 | . 5 . 1 . . . 2 . . 2 . . . Derelict Logs Recovered 8 | . . 2 . 2 . . . . . . 1 3 . Drone Launches . | . . . . . . . . . . . . . . Drone Recoveries . | . . . . . . . . . . . . . . Exploration | -11 -10 -10 -9 -9 -9 -8 -8 -8 -8 -7 -7 -7 -7 ------------- Run | Jun Mat Min Mat Min Exi Min Mat Gar Mat Fac Low Low Dat Turns Passed 20646 | 90 1872 1099 2936 2379 546 1424 2518 1156 1575 3433 577 841 200 Spaces Moved 10832 | 52 908 549 1077 957 228 569 1221 565 1160 2384 453 630 79 Core 6 | 3 . . . . . . . . 3 . . . . Treads 5423 | 49 621 . 1005 957 228 569 1221 565 114 . . 15 79 Legs 1417 | . 184 549 72 . . . . . 83 529 . . . Wheels 3145 | . 103 . . . . . . . 119 1855 453 615 . Hover . | . . . . . . . . . . . . . . Flight 841 | . . . . . . . . . 841 . . . . Fastest Speed 31 | 50 125 190 160 240 240 240 156 155 31 115 115 115 160 Average Speed 161 | 153 162 190 235 240 240 240 167 168 73 121 115 122 161 Slowest Speed 1000 | 160 260 190 240 240 240 240 240 240 1000 190 115 160 240 Overloaded Moves . | . . . . . . . . . . . . . . Propulsion Burnouts . | . . . . . . . . . . . . . . Robots Hopped 4 | . . . . . . . . . 4 . . . . Cave-ins Triggered 1 | . . . . . . . . . . . . . 1 Exploration Rate (%) 73 | 3 98 89 92 100 60 100 70 74 50 67 65 86 78 Regions Visited 13 Branch Regions 7 Pre-discovered Areas 9 | . 2 1 2 1 1 . . . . . 1 . 1 Known Exits Taken 2 | . . . . . . . 1 . . 1 . . . Unknown Exits Taken 10 | 1 1 1 1 1 1 1 . . 1 . 1 1 . Scrap Searched 10 | . . 1 . 2 . 1 . . . . 3 3 . Spaces Dug 59 | . . . . 16 . . 5 . 11 11 15 1 . Terrain Destroyed 639 | . . . 62 122 . 90 13 108 25 69 58 92 . Melee 11 | . . . . . . . . . 11 . . . . Projectile 96 | . . . 2 1 . . 13 4 14 34 9 19 . AOE 532 | . . . 60 121 . 90 . 104 . 35 49 73 . Terrain Rammed . | . . . . . . . . . . . . . . Walls Destroyed . | . . . . . . . . . . . . . . Machines Disabled . | . . . . . . . . . . . . . . Actions | -11 -10 -10 -9 -9 -9 -8 -8 -8 -8 -7 -7 -7 -7 --------- Run | Jun Mat Min Mat Min Exi Min Mat Gar Mat Fac Low Low Dat Total 12959 | 59 1168 590 1285 998 228 593 1577 669 1738 2787 483 663 121 Wait 1186 | . 169 19 49 . . . 234 10 447 239 . 2 17 Move 10812 | 51 907 548 1076 956 227 568 1221 564 1151 2383 452 629 79 Hop 4 | . . . . . . . . . 4 . . . . Pick Up 73 | 2 10 5 9 2 1 1 10 4 3 23 2 1 . Fast Attach 63 | 6 4 . 10 . . 1 5 5 16 14 1 1 . Attach 26 | . . . 6 3 . 1 1 3 5 2 1 4 . Detach 21 | . 3 . 3 . . . . 3 5 6 1 . . Swap 81 | . 3 1 13 3 . 2 13 11 6 19 4 4 2 Drop 89 | . 1 6 15 1 . . 14 3 16 29 2 2 . Fire 504 | . 68 7 98 25 . 17 75 60 45 67 16 20 6 Melee 44 | . . . . . . . . . 36 2 . . 6 Ram 5 | . . . . . . . . . 3 2 . . . Kick 7 | . 2 4 . . . . . . . 1 . . . Crush 36 | . 1 . 6 8 . 3 4 2 1 . . . 11 Escape Stasis 4 | . . . . . . . . 4 . . . . . Rewire 4 | . . . . . . . . . . . 4 . . Trap . | . . . . . . . . . . . . . . Miscellaneous . | . . . . . . . . . . . . . . Route ------- -11/Junkyard -10/Materials (discovered 4 exits: *Mat x3 / *Min) -10/Mines (discovered 2 exits: *Mat x2) -9/Materials (discovered 7 exits: *Mat x3 / [*Min x2] / [*Sto x2]) -9/Mines (discovered 3 exits: *Mat x2 / *Exi) -9/Exiles -8/Mines (discovered 2 exits: *Mat x2) -8/Materials (discovered 3 exits: *Fac x2 / Gar) -8/Garrison (discovered 3 exits: *Mat x3) -8/Materials -7/Factory (discovered 4 exits: [*Fac x2] / *Low x2) -7/Lower Caves -7/Lower Caves (discovered 2 exits: [*Fac] / *Dat) -7/Data Miner (discovered 1 exit: [*Pro]) History --------- Turn | Location | Event 8 | -11/Junkyard | Discovered new exit (range 14) 91 | -11/Junkyard | Entered Materials 246 | -10/Materials | Discovered new exit (range 5) 305 | -10/Materials | Build established: Mutant 316 | -10/Materials | Discovered new exit (range 15) 638 | -10/Materials | Discovered new exit (range 15) 1548 | -10/Materials | Discovered new exit (range 11) 1963 | -10/Materials | Entered Mines 2049 | -10/Mines | Learned Materials security intel 2248 | -10/Mines | Discovered new exit (range 16) 2329 | -10/Mines | Learned location of Zion (-6) 2420 | -10/Mines | Met a Derelict who couldn't figure out how to use a Trap Extractor 2496 | -10/Mines | Found a hidden stash of uninstalled traps 2567 | -10/Mines | YI-UF0 nonchalantly dropped a Grenade Launcher on the ground 2613 | -10/Mines | Discovered new exit (range 13) 2892 | -10/Mines | Assisted by bots powering up and referring to "LRC-V3" 3062 | -10/Mines | Entered Materials 3062 | -9/Materials | Accompanied by 3 allies 3062 | -9/Materials | Evolved 2 slots: Utility x2 3427 | -9/Materials | Central database locked down 3459 | -9/Materials | Discovered new exit (range 8) 3503 | -9/Materials | Destroyed 9 combat bots 3875 | -9/Materials | Build established: Scavenger-Mutant 4119 | -9/Materials | Repaired Med. Armor Plating 4231 | -9/Materials | Discovered new exit (range 6) 4299 | -9/Materials | Repaired Lgt. Cannon 4463 | -9/Materials | Discovered new exit (range 12) 4532 | -9/Materials | Build established: Mutant 4962 | -9/Materials | Discovered new exit (range 14) 5062 | -9/Materials | First assault squad dispatched 5220 | -9/Materials | Discovered new exit (range 11) 5316 | -9/Materials | Discovered new exit (range 14) 5417 | -9/Materials | Discovered new exit (range 16) 5491 | -9/Materials | Lost 3 parts (1n2u) 5998 | -9/Materials | Entered Mines 6050 | -9/Mines | Assembled infested the area 6085 | -9/Mines | Destroyed 7 combat bots 6241 | -9/Mines | Learned Materials stockpile data 6402 | -9/Mines | Received a Rocket Launcher from a helpful Derelict 6689 | -9/Mines | Discovered new exit (range 12) 6704 | -9/Mines | Learned location of Storage (-9) 6720 | -9/Mines | A weapon hastily lodged in a ceiling crevice suddenly fell to the ground 6845 | -9/Mines | Lost 3 parts (1n2u) 6941 | -9/Mines | Learned Materials terminal intel 6986 | -9/Mines | Discovered new exit (range 9) 8365 | -9/Mines | Deemed a non-threat by the Exiles lab entrance 8367 | -9/Mines | Discovered new exit (range 5) 8377 | -9/Mines | Entered Exiles 8435 | -9/Exiles | Met 8R-AWN 8473 | -9/Exiles | Met EX-HEX 8543 | -9/Exiles | Met EX-BIN 8577 | -9/Exiles | Aligned with FarCom system 8579 | -9/Exiles | Given EX-Vault access code 8641 | -9/Exiles | Opened EX-Vault 8656 | -9/Exiles | Found Field Lobotomy Kit 8707 | -9/Exiles | Warned to stay clear of 0b10 Research branches 8777 | -9/Exiles | Met EX-DEC 8897 | -9/Exiles | Discovered new exit (range 14) 8923 | -9/Exiles | Left Exiles lab with Field Lobotomy Kit 8923 | -9/Exiles | Entered Mines 9097 | -8/Mines | Discovered new exit (range 10) 9206 | -8/Mines | Discovered new exit (range 14) 10347 | -8/Mines | Entered Materials 10347 | -8/Materials | Evolved 2 slots: Propulsion x2 10349 | -8/Materials | Loaded intel: 11 terminal locations 11131 | -8/Materials | Repaired Hrd. Medium Armor Plating 11394 | -8/Materials | Discovered new exit (range 9) 12024 | -8/Materials | Discovered new exit (range 13) 12201 | -8/Materials | Central database locked down 12721 | -8/Materials | Repaired Imp. Treads 12764 | -8/Materials | Repaired Adv. Treads 12803 | -8/Materials | Repaired Hrd. Medium Armor Plating 12831 | -8/Materials | Repaired Lgt. Treads 12865 | -8/Materials | Identified exit to Garrison 12865 | -8/Materials | Entered Garrison 12865 | -8/Garrison | Accompanied by 3 allies 13075 | -8/Garrison | Destroyed 10 combat bots 13098 | -8/Garrison | Triggered checkpoint 13134 | -8/Garrison | Triggered checkpoint 13184 | -8/Garrison | Discovered new exit (range 4) 13206 | -8/Garrison | Triggered checkpoint 13236 | -8/Garrison | Identified exit to Materials 13398 | -8/Garrison | Triggered checkpoint 13458 | -8/Garrison | Triggered checkpoint 13630 | -8/Garrison | Build established: Scavenger-Mutant 13682 | -8/Garrison | Triggered checkpoint 14021 | -8/Garrison | Entered Materials 14332 | -8/Materials | Lost 3 parts (1p2n) 14379 | -8/Materials | Garrison activated, responded to threat 14424 | -8/Materials | Lost 5 parts (2n2u1w) 14481 | -8/Materials | Garrison activated, responded to threat 14569 | -8/Materials | Build established: Mutant 14837 | -8/Materials | Repaired Imp. Transmission Jammer? 14966 | -8/Materials | Build established: Sprinter 15207 | -8/Materials | Core integrity fell below 50% 15229 | -8/Materials | Discovered new exit (range 6) 15596 | -8/Materials | Entered Factory 15596 | -7/Factory | Evolved 2 slots: Utility x2 15629 | -7/Factory | Build established: Mutant 16091 | -7/Factory | Repaired Broken Imp. EM Pulse Cannon 16439 | -7/Factory | Garrison activated, responded to threat 16904 | -7/Factory | Discovered new exit (range 8) 16991 | -7/Factory | Identified exit to Lower Caves 17084 | -7/Factory | Build established: Hacker-Mutant 17463 | -7/Factory | Fabricated Enh. Gauss Cannon (x2) 18254 | -7/Factory | Discovered new exit (range 10) 18409 | -7/Factory | Repaired Reactive Plating 18796 | -7/Factory | Build established: Mutant 19029 | -7/Factory | Entered Lower Caves 19075 | -7/Lower Caves | Met a Warlord Commander 19076 | -7/Lower Caves | Learned location of Warlord (-4) 19079 | -7/Lower Caves | Found Encrypted Comm Array 19354 | -7/Lower Caves | Attracted the attention of an 0b10 outpost 19477 | -7/Lower Caves | Learned Factory non-interactive machine intel 19568 | -7/Lower Caves | Discovered new exit (range 8) 19606 | -7/Lower Caves | Entered another Lower Caves area 19606 | -7/Lower Caves | Accompanied by 1 ally 19692 | -7/Lower Caves | Discovered new exit (range 7) 19834 | -7/Lower Caves | Spotted B-75 Beast 19879 | -7/Lower Caves | Attracted the attention of an 0b10 outpost 19931 | -7/Lower Caves | Destroyed 8 combat bots 19935 | -7/Lower Caves | Lost 3 parts (3u) 19964 | -7/Lower Caves | Learned Factory emergency access door positions 20028 | -7/Lower Caves | Attracted the attention of an 0b10 checkpoint 20111 | -7/Lower Caves | Learned Factory emergency access door positions 20213 | -7/Lower Caves | Discovered new exit (range 5) 20320 | -7/Lower Caves | Encountered a Warlord checkpoint 20447 | -7/Lower Caves | Entered Data Miner 20447 | -7/Data Miner | Discovered new exit (range 6) 20478 | -7/Data Miner | Met Data Miner 20518 | -7/Data Miner | Learned location of Section 7 (-2) 20518 | -7/Data Miner | Acquired the access code to Warlord's prototype stash 20532 | -7/Data Miner | Received God Mode back door access code from Data Miner 20550 | -7/Data Miner | Data Conduit disabled 20609 | -7/Data Miner | Core integrity fell below 50% 20627 | -7/Data Miner | Crushed by falling debris 20640 | -7/Data Miner | Core integrity fell below 20% 20647 | -7/Data Miner | Destroyed by Enhanced Grunt with Neutron Cannon Last Messages --------------- 20605_ Med. Treads destroyed. 20605_ Slammed into Enhanced Grunt. 20607_ Enhanced Grunt knocked back. 20607_ Slug penetrates Enhanced Grunt. 20610_ Acquired 4 matter. 20611_ Slammed into Enhanced Grunt. 20614_ Enh. Gauss Cannon destroyed. 20614_ Slammed into Enhanced Grunt. 20617_ Acquired 1 matter. 20618_ Slammed into Enhanced Grunt. 20621_ Imp. Deuterium Engine destroyed. 20621_ Slammed into Enhanced Grunt. 20623_ Med. Treads destroyed. 20623_ Enh. Gauss Cannon destroyed. 20624_ Slammed into Enhanced Grunt. 20627_ The unstable cave ceiling collapses. 20627_ Crushed by falling debris. 20630_ Med. Treads destroyed. 20647_ The unstable cave ceiling collapses. 20647_ Enhanced Grunt crushed by falling debris. Map ----- +----------------------------------------------------+ | | | | | | | | | | | | | | | | | | | | | | | ????????????????????????? | | ????????????????????????? | | ????????????????????????? | | ????????????????????????? | | ????????????????????????? | | ??????###############???? | | ????#"""""""""""""""##### | | ??##""""""""" """""""" | | ??#"""""""""" | | ??#""""""" | | ??#"""""" | | ###""""" | | ##; ""%"" | | gg "%""" " | | @#" % """" """ | | #### """ """""# | | ???##" = """" "##### | | ????#"######"## "#???? | | ????###????#"### "#???? | | ???????????#"### "#???? | | ???????????#"## "#???? | | ???????????#?## "#???? | | ?????????????# "#???? | | ?????????????### "#???? | | ???????????????# "##??? | | ??????????????## ""#??? | | ???????????#?## ""#??? | | ?????????"##"#"X ""#??? | | ?????????"""""" "#### | | ?????????#""""" X""""" | | ??????????##"#"X "##"# | | ???????????#?## X""""# | | ??????????????## "##"# | | ???????????????#######??? | | ????????????????????????? | | ????????????????????????? | | ????????????????????????? | | ????????????????????????? | | ????????????????????????? | +----------------------------------------------------+ Best States ------------- Heat Dissipation 38 Coolant Potential 80 Energy Generation 19 Energy Capacity 315 Matter Stores 300 Matter Capacity 300 Sight Range 16 Terrain Scan Density 10 Jamming Range 14 Armor Coverage 600 Resistance: KI 20 Utility Shielding 66 Evasion (%) 63 Targeting Accuracy 8 Core Analysis 6 Recoil Reduction 4 Offensive Hacking 10 Defensive Hacking 11 Authchip Count 1 Item Schematics ----------------- Machine Analyzer | -9/Materials | Scanalyzed Adv. Terrain Scan Processor | -7/Factory | Hacked Combat Drone Bay | -7/Data Miner | Free Lgt. Regenerative Plating | -7/Data Miner | Free Cld. Cesium-ion Thruster | -7/Data Miner | Free Exp. Targeting Computer | -7/Data Miner | Free Imp. Heavy Laser | -7/Data Miner | Free Arm. Medium Treads | -7/Data Miner | Free Imp. Recalibrator | -7/Data Miner | Free Enh. Gauss Cannon | -7/Data Miner | Free EM Disruption Field | -7/Data Miner | Free Variable Charge Gun | -7/Data Miner | Free Robot Schematics ------------------ A-15 Conveyor | -7/Data Miner | Free S-27 Virus | -7/Data Miner | Free G-47 Trooper | -7/Data Miner | Free B-48 Gladiator | -7/Data Miner | Free G-50 Soldier | -7/Data Miner | Free Fabricated ------------ Enh. Gauss Cannon | x2 | -7/Factory | Preloaded Alien Tech Used ----------------- None Achievements -------------- None Challenges ------------ None Game ------ Seed BorePoweredAmplifier Manual? 0 Play Time 01:34:52 Cumulative 190.4 hours Start 2024.02.10 @ 11:04:21 End 2024.02.10 @ 14:18:23 Sessions 3 Manual Loads 0 Difficulty Rogue Special Mode None Game No. 156 Rogue 156 Adventurer 0 Explorer 0 Win Type - Total 3 Types 3/0/0/0/0/0/0/0/0 Lore% 62 Gallery% 71 Achievement% 60 Wizard Run 0 Options --------- ASCII 0 Keyboard 1 Movement Numpad Keybinds 0 Fullscreen 2 Font 18/SmallcapsGlow Map View 76x50 Tactical HUD 1 Map Filters NONE Filters NONE Steam 1 RUN: 6c89a0a9-2f95-4a09-9607-b6aaadf3f11f